Cogmind - Beta 12 @@@ ROGUE MODE // 2023.03.22 @ 05:37:26 Player: deadnoob Result: Destroyed by Y-64 Sentinel with Wave Gun Performance ------------- Evolutions (3) 1500 Regions Visited (13) 2600 Robots Destroyed (169) 845 Value Destroyed (6477) 6477 Prototype IDs (31) 620 Alien Tech Used (0) 0 Bonus (1733) 1733 TOTAL SCORE: 13775 Bonus ------- High Alert Combat Kills 1216 Follower Combat Kills 1037 Entered Garrisons 200 Met Data Miner 300 Friendly Fire -1020 Cogmind --------- Core Integrity 0/700 Matter 122/300 Energy 23/100 System Corruption 12% Temperature Cool (14) Movement Rolling (115) Ox1 Location -6/Proximity Caves Parts ------- > --- POWER (1) -------- (None) > --- PROPULSION (4) --- Compact Wheel > --- UTILITY (6) ------ Large Storage Unit Experimental Terrain Scan Processor Graphene Brace > --- WEAPON (2) ------- Riot Gun Mini Assault Cannon > --- INVENTORY (15) --- Gravity Neutralizer Encrypted Comm Array ECM Suite Authchip [R/NC] Authchip [R/NC] Cooled Phase Gun Cooled Plasma Cannon Antimatter Cannon Mini Grenade Launcher Tiamat Missile Launcher Tiamat Missile Launcher Tiamat Missile Launcher Peak State ------------ > --- POWER ------------ Antimatter Reactor > --- PROPULSION ------- Heavy Treads Compact Wheel Armored Wheel > --- UTILITY ---------- Large Storage Unit Active Sensor Suite Improved Medium Armor Plating Advanced Hacking Suite > --- WEAPON ----------- Beamcaster Mini Assault Cannon > --- INVENTORY -------- Armored Treads Armored Treads Transmission Jammer Hardened Medium Armor Plating Damper Plating Graphene Brace Authchip [R/NC] Improved Assault Rifle Heavy Battle Rifle Advanced Assault Cannon Mini Grenade Launcher [Rating: 76] Favorites ----------- Power Ion Engine Engine Ion Engine Power Core Light Nuclear Core Reactor Antimatter Reactor Propulsion Light Treads Treads Light Treads Leg Aluminum Leg Wheel Armored Wheel Hover Unit Cooled Gravmag System Flight Unit VTOL Module Utility Large Storage Unit Device Improved Heat Sink Storage Large Storage Unit Processor Experimental Terrain Scan Processor Hackware Hacking Suite Protection Light Armor Plating Weapon Autogun Energy Gun Cooled Phase Gun Energy Cannon Heavy Plasma Cannon Ballistic Gun Autogun Ballistic Cannon Antimatter Cannon Launcher Mini Grenade Launcher Special Melee Weapon Improved Datajack Build | -11 -10 -10 -9 -9 -8 -8 -7 -7 -7 -7 -7 -7 -6 ------- Run | Jun Mat Min Mat Min Mat Gar Fac Was Fac Low Low Dat Pro Slots Evolved 6 | . . . 2 . 2 . 2 . . . . . . Power . | . . . . . . . . . . . . . . Propulsion 2 | . . . 1 . . . 1 . . . . . . Utility 4 | . . . 1 . 2 . 1 . . . . . . Weapon . | . . . . . . . . . . . . . . Parts Attached 212 | 1 13 . 27 1 8 48 20 15 44 14 12 2 7 Power 13 | . 3 . 2 . . 2 2 1 2 1 . . . Engine 9 | . 2 . 2 . . 1 1 . 2 1 . . . Core 3 | . 1 . . . . 1 1 . . . . . . Reactor 1 | . . . . . . . . 1 . . . . . Propulsion 61 | . 6 . 12 . 1 11 7 5 9 4 5 . 1 Treads 34 | . 6 . 12 . 1 6 2 1 3 1 1 . 1 Leg 3 | . . . . . . . . . . 2 1 . . Wheel 20 | . . . . . . 5 5 3 4 1 2 . . Hover 2 | . . . . . . . . . 2 . . . . Flight 2 | . . . . . . . . 1 . . 1 . . Utility 52 | 1 2 . 5 . 4 9 4 5 16 1 4 . 1 Device 15 | 1 1 . 2 . . 1 1 1 4 . 3 . 1 Storage 3 | . 1 . . . 1 . . 1 . . . . . Processor 4 | . . . 1 . . . . 1 2 . . . . Hackware 4 | . . . 1 . . 1 . 1 1 . . . . Protection 26 | . . . 1 . 3 7 3 1 9 1 1 . . Artifact . | . . . . . . . . . . . . . . Weapon 86 | . 2 . 8 1 3 26 7 4 17 8 3 2 5 Energy Gun 10 | . . . 1 . . 1 . 2 . 3 1 . 2 Energy Cannon 14 | . . . . . . 8 2 1 1 1 1 . . Ballistic Gun 39 | . 2 . 7 . 3 15 1 1 6 1 1 1 1 Ballistic Cannon 11 | . . . . . . . 2 . 7 1 . . 1 Launcher 9 | . . . . 1 . 1 . . 3 2 . 1 1 Special Weapon . | . . . . . . . . . . . . . . Impact Weapon . | . . . . . . . . . . . . . . Slashing Weapon . | . . . . . . . . . . . . . . Piercing Weapon . | . . . . . . . . . . . . . . Special Melee Weapon 3 | . . . . . . 1 2 . . . . . . Unidentified Prototypes 12 | . . . 2 . 1 . . . 8 1 . . . Corrupted Parts 1 | . . . . . . . . . . 1 . . . System Corruption 2 | . . . . . . . . . . 2 . . . Parts Lost 42 | . . . 4 . . 8 1 6 6 7 3 . 7 Power 5 | . . . . . . 2 . 1 1 . . . 1 Propulsion 16 | . . . 2 . . 2 1 1 2 4 2 . 2 Utility 14 | . . . . . . 3 . 2 3 2 1 . 3 Weapon 7 | . . . 2 . . 1 . 2 . 1 . . 1 Highest Loss Streak 5 | . . . 2 . . 2 1 5 4 3 2 . 5 To Critical Strikes . | . . . . . . . . . . . . . . Average Slot Usage (%) 90 | . 100 100 98 100 92 88 91 70 79 77 94 70 70 Engine 7 | . 13 14 11 11 9 3 . 3 1 7 7 7 6 Core 1 | . . . . . . 4 6 . . . . . . Treads 17 | . 25 28 32 33 27 10 14 9 8 . 6 7 2 Wheel 7 | . . . . . . 16 15 13 13 . 7 7 7 Device 10 | . 14 14 3 11 9 9 14 6 4 21 18 23 21 Storage 9 | . 14 14 11 11 9 9 7 5 7 7 7 7 7 Processor 2 | . . . 7 . . . . 1 . 7 7 7 7 Hackware 6 | . . . 10 11 9 9 7 6 6 . . . . Protection 5 | . . . . . 10 8 7 5 12 5 9 . . Energy Gun 2 | . . . 1 11 . . . 4 3 6 10 . 4 Energy Cannon 1 | . . . . . . 3 1 2 1 . . . . Ballistic Gun 14 | . 28 28 19 . 18 13 11 4 5 2 2 1 4 Naked Turns . | . . . . . . . . . . . . . . Heaviest Build 175 | 13 32 32 35 33 158 164 171 175 90 55 52 52 49 Greatest Support 70 | 20 40 40 60 60 60 60 36 70 70 23 42 28 28 Greatest Overweight (x) 13 | . . . . . 2 13 13 8 4 3 2 1 1 Average Overweight (x) 2 | . . . . . . 6 5 1 1 1 1 1 1 Largest Inventory Capacity 30 | 8 15 15 15 15 30 30 30 30 15 15 15 15 15 Average Capacity 19 | 8 13 15 15 15 24 30 30 19 15 15 15 15 15 Most Carried 30 | 6 15 15 15 15 23 30 30 30 15 15 15 15 15 Average Carried 18 | 6 12 14 14 14 17 28 29 18 12 14 14 14 13 Final Capacity 30 | 8 15 15 15 15 30 30 30 15 15 15 15 15 15 Final Carried 30 | 6 15 15 15 15 23 30 30 15 12 14 14 14 12 Class Distribution -------------------- 42% | Scavenger-Mutant 37% | Mutant 17% | Hauler-Mutant Dominant Class ---------------- Mutant | -10/Materials Mutant | -10/Mines Scavenger-Mutant | -9/Materials Mutant | -9/Mines Hauler-Mutant | -8/Materials Scavenger-Mutant | -8/Garrison Hauler-Mutant | -7/Factory Hauler-Mutant | -7/Waste Scavenger-Mutant | -7/Factory Mutant | -7/Lower Caves Mutant | -7/Lower Caves Mutant | -7/Data Miner Mutant | -6/Proximity Caves Resources | -11 -10 -10 -9 -9 -8 -8 -7 -7 -7 -7 -7 -7 -6 ----------- Run | Jun Mat Min Mat Min Mat Gar Fac Was Fac Low Low Dat Pro Matter Collected 5899 | 216 352 168 977 30 200 1550 249 280 1083 491 238 . 65 Remotely . | . . . . . . . . . . . . . . Salvage Created 6625 | 24 640 153 1326 17 239 1351 293 . 1614 435 341 . 192 Parts 362 | 4 51 6 93 4 13 77 18 . 67 20 6 . 3 Haulers Intercepted 8 | . 1 . 4 . 1 . . . 2 . . . . Recyclers Shooed 4 | . . 1 . . . . . . 3 . . . . Parts Field Recycled . | . . . . . . . . . . . . . . Retrieved Matter . | . . . . . . . . . . . . . . Parts Self-Destructed 15 | . . . . . . . . . . 10 1 . 4 Prevented 1 | . . . . . . . . . . . 1 . . Kills | -11 -10 -10 -9 -9 -8 -8 -7 -7 -7 -7 -7 -7 -6 ------- Run | Jun Mat Min Mat Min Mat Gar Fac Was Fac Low Low Dat Pro Combat Hostiles Destroyed 118 | . 12 3 22 4 3 27 3 . 27 11 1 . 5 Guns 73 | . 12 3 22 . 3 20 2 . 5 3 1 . 2 Cannons 20 | . . . . . . 2 1 . 14 3 . . . AOE 25 | . . . . 4 . 5 . . 8 5 . . 3 Classes Destroyed 18 | 1 7 1 3 . 1 . 1 . 2 2 . . . Worker 8 | . 3 . 3 . . . . . 2 . . . . Builder 7 | . 1 . 2 . . . . . 4 . . . . Tunneler 2 | 1 . . . . 1 . . . . . . . . Hauler 8 | . 1 . 4 . 1 . . . 2 . . . . Recycler 10 | . . 1 1 . . . . . 8 . . . . Minesweeper 1 | . . . . . . . . . . 1 . . . Mechanic 3 | . 1 . . . . . . . 2 . . . . Operator 3 | . . . 2 . . . . . 1 . . . . Watcher 6 | . 1 . 4 . . . . . 1 . . . . Swarmer 26 | . 3 3 7 4 . 7 . . . 2 . . . Grunt 36 | . 9 . 7 . 1 8 . . 8 2 . . 1 Brawler 2 | . . . . . . . . . 1 . . . 1 Duelist 6 | . . . 1 . . 2 . . 1 . . . 2 Sentry 26 | . . . 7 . . 10 2 . 4 1 1 . 1 Specialist 5 | . . . . . 2 . . . 3 . . . . Hunter 4 | . . . . . . . . . 4 . . . . Programmer 7 | . . . . . . . 1 . 6 . . . . Decomposer 2 | . . . . . . . . . . . 2 . . Thug 5 | . . . . . . . 1 . . 4 . . . Butcher 3 | . . . . . . . 1 . . 2 . . . Mutant 1 | . . . . . . . . . . 1 . . . Best Kill Streak 7 | 1 3 3 6 4 2 6 1 . 7 5 1 . 2 Combat Bots Only 7 | . 3 3 6 4 2 6 1 . 7 5 1 . 2 Max Kills in Single Turn 4 | 1 1 1 2 4 1 2 1 . 2 3 1 . 2 Gunslinging . | . . . . . . . . . . . . . . Exploded 4 | . . . . 4 . 2 . . 2 2 . . 2 Melee . | . . . . . . . . . . . . . . Uniques/NPCs Destroyed . | . . . . . . . . . . . . . . Combat | -11 -10 -10 -9 -9 -8 -8 -7 -7 -7 -7 -7 -7 -6 -------- Run | Jun Mat Min Mat Min Mat Gar Fac Was Fac Low Low Dat Pro Damage Taken 8927 | . 397 74 1086 118 175 1332 373 366 3372 616 267 . 751 Core 1061 | . 71 8 73 10 13 178 34 37 301 106 29 . 201 Absorbed by Shields 254 | . . . . . . 2 169 83 . . . . . Reduced by Siege Mode 151 | . . . . . . . . . 151 . . . . Redirected to Shielding 5 | . . . . . . . . . . 5 . . . Regen/Repaired (Parts) 537 | . 122 . 208 . 97 . . 56 54 . . . . Core Remaining (%) 78 | 100 . 68 . 79 . 65 . . . . . . . Volleys Fired 570 | 1 38 8 95 1 15 177 32 12 121 32 21 . 17 Largest 2 | 2 2 2 2 1 2 2 2 2 2 2 2 . 2 Hottest 113 | 40 46 46 79 30 48 113 113 90 108 76 60 . 98 Shots Fired 1005 | 2 76 16 190 1 30 303 58 18 210 42 29 . 30 Gun 772 | 2 76 16 190 . 30 250 49 11 78 21 27 . 22 Cannon 211 | . . . . . . 47 9 7 125 17 2 . 4 Launcher 22 | . . . . 1 . 6 . . 7 4 . . 4 Special . | . . . . . . . . . . . . . . Kinetic 771 | 2 76 16 166 . 30 236 50 . 163 11 8 . 13 Thermal 194 | . . . 24 . . 61 8 18 40 25 9 . 9 Explosive 22 | . . . . 1 . 6 . . 7 4 . . 4 Electromagnetic 18 | . . . . . . . . . . 2 12 . 4 Robot Hit Streak 31 | 1 11 8 9 2 8 31 14 4 21 22 18 . 6 Robot Miss Streak 4 | . 4 3 3 . 3 4 1 3 4 3 4 . 2 Penetration Max . | . . . . . . . . . . . . . . Secondary Targets 8 | . . . 3 . 1 3 . . 1 . . . . Max Gunslinging Chain 1 | . . . 1 . 1 1 . . 1 . . . . Shots Hit Robots 666 | 1 46 10 117 1 20 211 37 7 150 28 18 . 20 Core Hits 320 | 1 27 4 54 4 9 82 11 2 82 25 8 . 11 Critical Kills 1 | . . . . . . 1 . . . . . . . Critical Parts Destroyed 5 | . . . . . 2 1 1 . 1 . . . . Critical Strikes 15 | . . . 3 . 2 2 1 . 6 1 . . . Burn 5 | . . . 3 . . . . . 1 1 . . . Destroy 6 | . . . . . 2 2 1 . 1 . . . . Blast 4 | . . . . . . . . . 4 . . . . Melee Attacks 3 | . . . . . . 1 2 . . . . . . Impact . | . . . . . . . . . . . . . . Slashing . | . . . . . . . . . . . . . . Piercing . | . . . . . . . . . . . . . . Sneak Attacks 3 | . . . . . . 1 2 . . . . . . Combat Hostiles . | . . . . . . . . . . . . . . Follow-up Attacks . | . . . . . . . . . . . . . . Damage Inflicted 16163 | 27 653 166 1907 271 309 3139 577 130 6031 1659 410 . 884 Guns 8505 | 11 618 160 1891 . 309 2424 546 130 1296 455 357 . 308 Cannons 3219 | . . . . . . 287 31 . 2648 227 . . 26 Explosions 4273 | . . . . 255 . 428 . . 2010 977 53 . 550 Melee . | . . . . . . . . . . . . . . Ramming 166 | 16 35 6 16 16 . . . . 77 . . . . Kinetic 8947 | 11 618 160 1623 . 309 2248 577 . 2958 249 76 . 118 Thermal 2673 | . . . 268 48 . 463 . 130 986 435 184 . 159 Explosive 4127 | . . . . 207 . 428 . . 2010 932 . . 550 Electromagnetic 250 | . . . . . . . . . . 43 150 . 57 Impact . | . . . . . . . . . . . . . . Slashing . | . . . . . . . . . . . . . . Piercing . | . . . . . . . . . . . . . . Highest Corruption 12 | . 1 1 . . . . . 4 10 12 12 12 12 Average Corruption 6 | . 1 1 . . . . . 4 6 10 12 12 12 Corruption Purged . | . . . . . . . . . . . . . . Corruption Blocked . | . . . . . . . . . . . . . . Effects 125 | . . 6 . . . . . 14 37 40 18 5 5 Message Errors 27 | . . 1 . . . . . 4 8 8 5 1 . Matter Fused 29 | . . 2 . . . . . 2 3 15 3 2 2 Heat Flow Errors 12 | . . . . . . . . . 3 6 2 1 . Energy Discharges 20 | . . . . . . . . 1 6 5 7 . 1 Parts Rejected 4 | . . . . . . . . . 2 1 . . 1 Parts Fused 1 | . . 1 . . . . . . . . . . . Data Loss (minor) 16 | . . 2 . . . . . 6 4 2 1 . 1 Data Loss (major) 4 | . . . . . . . . . 4 . . . . Misfires 3 | . . . . . . . . 1 2 . . . . Alerts 1 | . . . . . . . . . . . . 1 . Weapon Failures 8 | . . . . . . . . . 5 3 . . . Overload Shots . | . . . . . . . . . . . . . . Overflow Damage 373 | . . . . . . . . . 257 . 60 . 56 Projectiles 137 | . . . . . . . . . 137 . . . . Explosions 236 | . . . . . . . . . 120 . 60 . 56 Melee . | . . . . . . . . . . . . . . Knockbacks 26 | . . . . . . . . . 24 2 . . . Impact 1 | . . . . . . . . . 1 . . . . Kinetic 19 | . . . . . . . . . 17 2 . . . Secondary 6 | . . . . . . . . . 6 . . . . Self-Inflicted Damage 562 | . . . . 88 . 5 . . 178 66 43 . 182 Shots 14 | . . . . 2 . 1 . . 3 3 1 . 4 Rammed 20 | . 1 2 4 1 . . . . 12 . . . . Targets Rammed 26 | 3 4 2 4 1 . . . . 12 . . . . Kicked 5 | 3 2 . . . . . . . . . . . . Crushed 1 | . 1 . . . . . . . . . . . . Highest Temperature 396 | . 6 12 66 5 12 295 24 48 396 249 231 247 26 Average Temperature 66 | . 3 5 15 5 5 50 13 19 104 87 39 126 6 Received Heat Transfer 2257 | . 183 . 348 . 9 522 88 . 780 129 54 . 144 Effects 7 | . . . . . . 3 . . 4 . . . . Energy Bleed 1 | . . . . . . . . . 1 . . . . Interference 6 | . . . . . . 3 . . 3 . . . . Siege Activations 5 | . . . . . . . . . 5 . . . . Total Turns 122 | . . . . . . . . . 122 . . . . Longest Duration 34 | . . . . . . . . . 34 . . . . Robots Corrupted . | . . . . . . . . . . . . . . Combat Hostiles . | . . . . . . . . . . . . . . Parts Fried . | . . . . . . . . . . . . . . Impact Corruptions . | . . . . . . . . . . . . . . Robots Melted . | . . . . . . . . . . . . . . Combat Hostiles . | . . . . . . . . . . . . . . Parts Melted 8 | . . . 2 . 1 1 . . 3 . 1 . . Heat Transferred 4520 | . . . 777 50 . 630 . 370 1557 679 235 . 222 Parts Sabotaged . | . . . . . . . . . . . . . . Parts Stolen . | . . . . . . . . . . . . . . Parts Stripped . | . . . . . . . . . . . . . . Power Chain Reactions 2 | . . . . . . . . . . 1 1 . . Missiles Intercepted . | . . . . . . . . . . . . . . Alert | -11 -10 -10 -9 -9 -8 -8 -7 -7 -7 -7 -7 -7 -6 ------- Run | Jun Mat Min Mat Min Mat Gar Fac Was Fac Low Low Dat Pro Peak Influence 2539 | 5 303 76 254 239 226 2539 1412 448 1496 . . . . Initial 1332 | . 3 6 . 99 92 146 1332 443 21 . . . . Average 584 | 2 135 26 78 237 182 1341 1304 271 646 . . . . Maximum Alert Level 5 | . 1 . 1 1 1 5 4 2 4 . . . . Low Security (%) 47 | 100 81 100 90 . 50 6 . 46 13 . . . . Level 1 12 | . 18 . 9 99 49 3 . 12 24 . . . . Level 2 8 | . . . . . . 13 . 40 15 . . . . Level 3 6 | . . . . . . 13 . . 30 . . . . Level 4 15 | . . . . . . 26 100 . 16 . . . . Level 5 10 | . . . . . . 36 . . . . . . . High Security . | . . . . . . . . . . . . . . Max Security . | . . . . . . . . . . . . . . Squads Dispatched 38 | . 6 . 3 . 1 . 1 1 25 . . . 1 Investigation 11 | . 4 . 3 . . . . . 4 . . . . Extermination 3 | . . . . . . . 1 . 2 . . . . Reinforcement 10 | . 2 . . . 1 . . . 7 . . . . Assault 4 | . . . . . . . . 1 2 . . . 1 Garrison 10 | . . . . . . . . . 10 . . . . Intercept . | . . . . . . . . . . . . . . Searches Triggered . | . . . . . . . . . . . . . . Construction Impeded 4 | . . . . . . . . . 4 . . . . Haulers Reinforced . | . . . . . . . . . . . . . . Active Scanning Responses 2 | . . . . . . . . . 2 . . . . Cargo Convoy Interrupts 2 | . . . . . . . 1 . 1 . . . . Stealth | -11 -10 -10 -9 -9 -8 -8 -7 -7 -7 -7 -7 -7 -6 --------- Run | Jun Mat Min Mat Min Mat Gar Fac Was Fac Low Low Dat Pro Distress Signals 12 | . 1 . 4 . 3 . 1 . 3 . . . . Communications Jammed 1 | . . . . . . . . . 1 . . . . Distress Signals . | . . . . . . . . . . . . . . Times Spotted 224 | . 26 3 37 4 9 35 5 9 72 13 1 . 10 Peak Tracking Total 12 | . 3 3 6 4 4 9 1 7 12 4 1 . 6 Tactical Retreats 16 | . 1 . 1 . . 7 . 2 5 . . . . Traps | -11 -10 -10 -9 -9 -8 -8 -7 -7 -7 -7 -7 -7 -6 ------- Run | Jun Mat Min Mat Min Mat Gar Fac Was Fac Low Low Dat Pro Traps Triggered 16 | . 2 . 3 . . 6 3 . 2 . . . . Indirectly . | . . . . . . . . . . . . . . Trap Hack Attempts . | . . . . . . . . . . . . . . Triggered . | . . . . . . . . . . . . . . Disarmed . | . . . . . . . . . . . . . . Reprogrammed . | . . . . . . . . . . . . . . Reused . | . . . . . . . . . . . . . . Traps Extracted . | . . . . . . . . . . . . . . Installed . | . . . . . . . . . . . . . . Triggered 2 | . . . . . . . 2 . . . . . . Machines | -11 -10 -10 -9 -9 -8 -8 -7 -7 -7 -7 -7 -7 -6 ---------- Run | Jun Mat Min Mat Min Mat Gar Fac Was Fac Low Low Dat Pro Machines Disabled 28 | . . . . 1 . 9 . . 18 . . . . Max in Single Turn 4 | . . . . 1 . 2 . . 4 . . . . Garrison Access 1 | . . . . . . . 1 . . . . . . Garrison Relay 5 | . . . . . . 5 . . . . . . . Phase Generator 1 | . . . . . . 1 . . . . . . . Machines Repaired . | . . . . . . . . . . . . . . Machines Sabotaged . | . . . . . . . . . . . . . . Overloaded Fab Kills . | . . . . . . . . . . . . . . Hacking | -11 -10 -10 -9 -9 -8 -8 -7 -7 -7 -7 -7 -7 -6 --------- Run | Jun Mat Min Mat Min Mat Gar Fac Was Fac Low Low Dat Pro Machines Accessed 34 | . 8 . 11 . 3 6 2 . 2 . . 2 . Terminals 24 | . 5 . 9 . 1 6 1 . 2 . . . . Fabricators . | . . . . . . . . . . . . . . Repair Stations 3 | . 1 . 1 . 1 . . . . . . . . Recycling Units 2 | . 2 . . . . . . . . . . . . Scanalyzers 1 | . . . 1 . . . . . . . . . . Garrison Access 2 | . . . . . 1 . 1 . . . . . . Total Hacks 108 | . 18 . 50 . 5 12 3 . 6 . . 14 . Successful 69 | . 8 . 35 . 4 6 1 . 1 . . 14 . Failed 38 | . 9 . 15 . 1 6 2 . 5 . . . . Catastrophic 7 | . 3 . 1 . . 1 1 . 1 . . . . Database Lockouts 1 | . 1 . . . . . . . . . . . . Manual 37 | . 11 . 20 . 1 . . . 5 . . . . Terminals 68 | . 12 . 35 . 1 12 2 . 6 . . . . Fabricators . | . . . . . . . . . . . . . . Repair Stations 13 | . 4 . 6 . 3 . . . . . . . . Recycling Units 2 | . 2 . . . . . . . . . . . . Scanalyzers 9 | . . . 9 . . . . . . . . . . Garrison Access 2 | . . . . . 1 . 1 . . . . . . Terminal Hacks 41 | . 1 . 18 . 1 6 . . 1 . . 14 . Record 3 | . . . . . . . . . 1 . . 2 . Part Schematic 10 | . . . 1 . . . . . . . . 9 . Robot Schematic 1 | . . . 1 . . . . . . . . . . Robot Analysis 3 | . 1 . 2 . . . . . . . . . . Prototype ID Bank 5 | . . . 2 . . . . . . . . 3 . Open Door 2 | . . . . . . 2 . . . . . . . Branch Access Points 2 | . . . 1 . 1 . . . . . . . . Emergency Access Points 2 | . . . 1 . . 1 . . . . . . . Repair Station Index 1 | . . . 1 . . . . . . . . . . Unreport Threat 2 | . . . 2 . . . . . . . . . . Locate Traps 2 | . . . 2 . . . . . . . . . . Maintenance Status 1 | . . . 1 . . . . . . . . . . Hauler Manifests 1 | . . . 1 . . . . . . . . . . Registered Components 1 | . . . 1 . . . . . . . . . . Zone Layout 2 | . . . 2 . . . . . . . . . . Garrison Registry 1 | . . . . . . 1 . . . . . . . Patrol Navigation 1 | . . . . . . 1 . . . . . . . Security Stations 1 | . . . . . . 1 . . . . . . . Fabricator Hacks . | . . . . . . . . . . . . . . Repair Station Hacks 10 | . 4 . 4 . 2 . . . . . . . . Scan Component 5 | . 2 . 2 . 1 . . . . . . . . Repair 5 | . 2 . 2 . 1 . . . . . . . . Recycling Unit Hacks . | . . . . . . . . . . . . . . Scanalyzer 9 | . . . 9 . . . . . . . . . . Insert Component 4 | . . . 4 . . . . . . . . . . Analyze 5 | . . . 5 . . . . . . . . . . Garrison Access Hacks 2 | . . . . . 1 . 1 . . . . . . Unlock Access 1 | . . . . . 1 . . . . . . . . Seal Access 1 | . . . . . . . 1 . . . . . . Unauthorized Hacks 7 | . 3 . 4 . . . . . . . . . . Terminals 5 | . 1 . 4 . . . . . . . . . . Track 3 | . 1 . 2 . . . . . . . . . . Assimilate 1 | . . . 1 . . . . . . . . . . Botnet 1 | . . . 1 . . . . . . . . . . Fabricators . | . . . . . . . . . . . . . . Repair Stations . | . . . . . . . . . . . . . . Recycling Units 2 | . 2 . . . . . . . . . . . . Tunnel 2 | . 2 . . . . . . . . . . . . Scanalyzers . | . . . . . . . . . . . . . . Garrison Access . | . . . . . . . . . . . . . . Data Cores Recovered 3 | . . . 1 . . . . . 2 . . . . Used 2 | . . . 1 . . . . . 1 . . . . Hacking Detections 27 | . 6 . 10 . 3 5 1 . 2 . . . . Full Trace Events 9 | . 3 . 3 . . 1 . . 2 . . . . Feedback Events . | . . . . . . . . . . . . . . Feedback Blocked . | . . . . . . . . . . . . . . Robot Schematics Acquired 1 | . . . 1 . . . . . . . . . . Robots Built . | . . . . . . . . . . . . . . Authchips . | . . . . . . . . . . . . . . Time . | . . . . . . . . . . . . . . Total Robot Build Rating . | . . . . . . . . . . . . . . Part Schematics Acquired 14 | . . . 5 . . . . . . . . 9 . Parts Built . | . . . . . . . . . . . . . . Authchips . | . . . . . . . . . . . . . . Time . | . . . . . . . . . . . . . . Total Part Build Rating . | . . . . . . . . . . . . . . Parts Repaired 5 | . 2 . 2 . 1 . . . . . . . . Time 136 | . 52 . 58 . 26 . . . . . . . . Parts Recycled . | . . . . . . . . . . . . . . Recycled Matter . | . . . . . . . . . . . . . . Retrieved Matter . | . . . . . . . . . . . . . . Retrieved Components . | . . . . . . . . . . . . . . Parts Scanalyzed 4 | . . . 4 . . . . . . . . . . Part Schematics Acquired 4 | . . . 4 . . . . . . . . . . Parts Damaged . | . . . . . . . . . . . . . . Bothacking | -11 -10 -10 -9 -9 -8 -8 -7 -7 -7 -7 -7 -7 -6 ------------ Run | Jun Mat Min Mat Min Mat Gar Fac Was Fac Low Low Dat Pro Used RIF Installer . | . . . . . . . . . . . . . . Robots Hacked 3 | . . . . . . 1 2 . . . . . . Non-combat 2 | . . . . . . . 2 . . . . . . Combat 1 | . . . . . . 1 . . . . . . . Robot Hacks Applied 3 | . . . . . . 1 2 . . . . . . parse_system 1 | . . . . . . 1 . . . . . . . find_chute 2 | . . . . . . . 2 . . . . . . Relay Couplers Released 19 | . . . . . . 19 . . . . . . . Machine Destruction 19 | . . . . . . 19 . . . . . . . Fabnet Peak Effective % . | . . . . . . . . . . . . . . Robots Rewired 6 | . . . . . . 5 . . . 1 . . . Allies Hacked . | . . . . . . . . . . . . . . Hacks Repelled . | . . . . . . . . . . . . . . Allies | -11 -10 -10 -9 -9 -8 -8 -7 -7 -7 -7 -7 -7 -6 -------- Run | Jun Mat Min Mat Min Mat Gar Fac Was Fac Low Low Dat Pro Total Allies 32 | . . . 1 5 . 6 . 18 . 1 . . 1 Largest Group 18 | . . . 1 5 5 3 2 18 11 1 . . 1 Highest-Rated Group 434 | . . . 10 86 86 202 56 434 293 25 . . 96 Highest-Rated Ally 146 | . . . 10 31 31 146 31 35 31 25 . . 96 Total Orders 2 | . . . . . . 2 . . . . . . . STAY 1 | . . . . . . 1 . . . . . . . FOLLOW 1 | . . . . . . 1 . . . . . . . Ally Attacks 313 | . . . . . 17 25 . 134 125 1 . . 11 Total Damage 8442 | . . . . . 207 955 . 4841 2076 41 . . 322 Kills 40 | . . . . . 3 9 . 11 16 . . . 1 Allies Corrupted . | . . . . . . . . . . . . . . Allies Melted . | . . . . . . . . . . . . . . Intel | -11 -10 -10 -9 -9 -8 -8 -7 -7 -7 -7 -7 -7 -6 ------- Run | Jun Mat Min Mat Min Mat Gar Fac Was Fac Low Low Dat Pro Robot Analysis Total 3 | . 1 . 2 . . . . . . . . . . Derelict Logs Recovered 6 | . . 2 . 1 . . . . . 2 . . 1 Drone Launches . | . . . . . . . . . . . . . . Drone Recoveries . | . . . . . . . . . . . . . . Exploration | -11 -10 -10 -9 -9 -8 -8 -7 -7 -7 -7 -7 -7 -6 ------------- Run | Jun Mat Min Mat Min Mat Gar Fac Was Fac Low Low Dat Pro Turns Passed 14276 | 34 1701 932 2736 260 384 3420 787 951 1232 930 641 102 166 Spaces Moved 6569 | 22 736 567 1082 157 134 1234 370 471 606 546 474 86 84 Core 119 | . . . . . . . . 115 . 4 . . . Treads 2643 | . 625 567 1082 157 134 3 . 14 61 . . . . Legs 150 | 22 111 . . . . . . . . . 17 . . Wheels 3043 | . . . . . . 1231 370 260 545 47 420 86 84 Hover 532 | . . . . . . . . . . 495 37 . . Flight 82 | . . . . . . . . 82 . . . . . Fastest Speed 45 | 120 120 160 160 160 160 180 150 45 110 100 105 115 115 Average Speed 156 | 120 153 160 160 160 236 194 174 107 125 148 119 115 115 Slowest Speed 400 | 120 160 160 160 160 320 400 285 325 170 200 260 115 115 Overloaded Moves . | . . . . . . . . . . . . . . Propulsion Burnouts . | . . . . . . . . . . . . . . Robots Hopped . | . . . . . . . . . . . . . . Cave-ins Triggered 1 | . . . . . . . . 1 . . . . . Exploration Rate (%) 53 | 3 95 96 57 42 15 94 13 97 19 73 69 68 12 Regions Visited 13 Branch Regions 6 Pre-discovered Areas 6 | . 2 1 . . . . . . . 2 . 1 . Known Exits Taken 3 | . . . 1 1 1 . . . . . . . . Unknown Exits Taken 7 | 1 1 1 . . . . . . 1 1 1 1 . Scrap Searched 6 | . . 1 . 1 . . . . . 1 3 . . Spaces Dug 21 | . . . . . . . 5 5 5 5 1 . . Terrain Destroyed 322 | . . . . 23 . 81 8 7 91 49 6 . 57 Melee . | . . . . . . . . . . . . . . Projectile 51 | . . . . . . . 8 7 21 12 2 . 1 AOE 271 | . . . . 23 . 81 . . 70 37 4 . 56 Terrain Rammed . | . . . . . . . . . . . . . . Walls Destroyed . | . . . . . . . . . . . . . . Machines Disabled . | . . . . . . . . . . . . . . Actions | -11 -10 -10 -9 -9 -8 -8 -7 -7 -7 -7 -7 -7 -6 --------- Run | Jun Mat Min Mat Min Mat Gar Fac Was Fac Low Low Dat Pro Total 9666 | 26 1231 578 1932 164 177 1991 463 900 853 617 520 89 125 Wait 1950 | . 411 . 676 3 8 408 15 383 27 7 . . 12 Move 6557 | 21 735 566 1081 156 134 1232 370 470 605 545 473 85 84 Hop . | . . . . . . . . . . . . . . Pick Up 122 | . 17 1 23 1 8 25 10 9 20 3 3 . 2 Fast Attach 59 | 1 1 . 3 . 4 7 7 10 9 6 9 1 1 Attach 44 | . 2 . 8 . 1 7 3 3 13 2 . 1 4 Detach 19 | . 1 . 2 . 1 3 2 2 3 2 1 1 1 Swap 109 | . 10 . 16 1 3 34 10 2 22 6 3 . 2 Drop 116 | . 12 1 24 1 3 21 12 9 21 1 8 1 2 Fire 570 | 1 38 8 95 1 15 177 32 12 121 32 21 . 17 Melee 3 | . . . . . . 1 2 . . . . . . Ram 5 | . . . . . . . . . 5 . . . . Kick 5 | 3 2 . . . . . . . . . . . . Crush 16 | . 2 2 4 1 . . . . 7 . . . . Escape Stasis 24 | . . . . . . 24 . . . . . . . Rewire 67 | . . . . . . 52 . . . 13 2 . . Trap . | . . . . . . . . . . . . . . Miscellaneous . | . . . . . . . . . . . . . . Route ------- -11/Junkyard -10/Materials (discovered 5 exits: *Mat x3 / [*Min x2]) -10/Mines (discovered 2 exits: *Mat x2) -9/Materials (discovered 3 exits: *Mat / *Min x2) -9/Mines (discovered 2 exits: *Mat x2) -8/Materials (discovered 2 exits: Fac / Gar) -8/Garrison (discovered 3 exits: *Fac x3) -7/Factory -7/Waste -7/Factory -7/Lower Caves -7/Lower Caves -7/Data Miner -6/Proximity Caves History --------- Turn | Location | Event 1 | -11/Junkyard | Discovered new exit (range 3) 35 | -11/Junkyard | Entered Materials 35 | -10/Materials | Discovered new exit (range 7) 169 | -10/Materials | Discovered new exit (range 3) 316 | -10/Materials | Build established: Mutant 614 | -10/Materials | Discovered new exit (range 14) 908 | -10/Materials | Discovered new exit (range 11) 1438 | -10/Materials | Repaired Lgt. Treads 1464 | -10/Materials | Repaired Lgt. Treads 1494 | -10/Materials | Discovered new exit (range 16) 1519 | -10/Materials | Central database locked down 1736 | -10/Materials | Entered Mines 1818 | -10/Mines | Discovered new exit (range 9) 1821 | -10/Mines | Learned location of Zion (-6) 2052 | -10/Mines | Learned 2 Materials zone layouts 2233 | -10/Mines | Discovered new exit (range 8) 2668 | -10/Mines | Entered Materials 2668 | -9/Materials | Evolved 2 slots: Propulsion x1, Utility x1 2669 | -9/Materials | Identified exit to Materials 2731 | -9/Materials | Identified exit to Mines 3108 | -9/Materials | Build established: Scavenger-Mutant 4896 | -9/Materials | Repaired Lgt. Treads 4929 | -9/Materials | Repaired Autogun 5368 | -9/Materials | Build established: Mutant 5404 | -9/Materials | Entered Mines 5416 | -9/Mines | Discovered exit to Materials (range 6) 5455 | -9/Mines | Met a Derelict testing a Signal Generator 5461 | -9/Mines | Found Signal Generator 5563 | -9/Mines | Learned 2 Materials zone layouts 5579 | -9/Mines | Assisted by bots powering up and referring to "LRC-V3" 5614 | -9/Mines | Discovered exit to Materials (range 16) 5664 | -9/Mines | Entered Materials 5664 | -8/Materials | Accompanied by 5 allies 5664 | -8/Materials | Evolved 2 slots: Utility x2 5665 | -8/Materials | Identified exit to Factory 5669 | -8/Materials | Led the pair of lost Derelicts to an unsafe place 5822 | -8/Materials | Repaired Lgt. Treads? 6048 | -8/Materials | Identified exit to Garrison 6048 | -8/Materials | Entered Garrison 6123 | -8/Garrison | Build established: Hauler-Mutant 6342 | -8/Garrison | Triggered checkpoint 6390 | -8/Garrison | Garrison Relay disabled 6582 | -8/Garrison | Triggered checkpoint 6590 | -8/Garrison | Build established: Scavenger-Mutant 6679 | -8/Garrison | Discovered exit to Factory (range 12) 6698 | -8/Garrison | Triggered checkpoint 6840 | -8/Garrison | Garrison Relay disabled 6958 | -8/Garrison | Triggered checkpoint 7232 | -8/Garrison | Triggered checkpoint 7275 | -8/Garrison | Garrison Relay disabled 7308 | -8/Garrison | Garrison Relay disabled 7395 | -8/Garrison | Discovered exit to Factory (range 15) 7555 | -8/Garrison | Build established: Hauler-Mutant 7680 | -8/Garrison | Triggered checkpoint 7773 | -8/Garrison | Discovered exit to Factory (range 10) 7791 | -8/Garrison | Learned Factory security intel 7806 | -8/Garrison | Triggered checkpoint 7820 | -8/Garrison | Garrison Relay disabled 7847 | -8/Garrison | Discovered exit to Factory (range 47) 7847 | -8/Garrison | Discovered exit to Factory (range 48) 7847 | -8/Garrison | Discovered exit to Factory (range 7) 8222 | -8/Garrison | Rescued HV-R5K 8314 | -8/Garrison | Triggered checkpoint 8562 | -8/Garrison | Phase Generator disabled 8743 | -8/Garrison | Build established: Scavenger-Mutant 8808 | -8/Garrison | Attempted to access garrison exit controls, blocked by remote lockdown 9468 | -8/Garrison | Entered Factory 9468 | -7/Factory | Accompanied by 2 allies 9468 | -7/Factory | Evolved 2 slots: Propulsion x1, Utility x1 10066 | -7/Factory | Build established: Hauler-Mutant 10127 | -7/Factory | Cargo convoy interrupted 10255 | -7/Factory | Sucked down chute 10255 | -7/Factory | Entered Waste 10272 | -7/Waste | Spotted C-40 Crusher 10287 | -7/Waste | Spotted C-40 Crusher 10634 | -7/Waste | Crushed by falling debris 10634 | -7/Waste | Crushed by Compactor (1 part destroyed, 1 dropped) 10638 | -7/Waste | Spotted C-40 Crusher 10639 | -7/Waste | Crushed by Compactor (1 part destroyed, 1 dropped) 10640 | -7/Waste | Spotted C-40 Crusher 10641 | -7/Waste | Spotted C-40 Crusher 10643 | -7/Waste | Crushed by Compactor (1 part destroyed, 1 dropped) 10674 | -7/Waste | Lost 5 parts (1p2u2w) 10680 | -7/Waste | Spotted C-40 Crusher 10689 | -7/Waste | Crushed by Compactor (1 part destroyed, 2 dropped) 10692 | -7/Waste | Crushed by Compactor (0 parts destroyed, 1 dropped) 10695 | -7/Waste | Crushed by Compactor (0 parts destroyed, 1 dropped) 10712 | -7/Waste | Discovered new exit (range 16) 10769 | -7/Waste | Warlord forces began an assault 10795 | -7/Waste | Allies destroyed C-40 Crusher 10800 | -7/Waste | Allies destroyed C-40 Crusher 10801 | -7/Waste | Allies destroyed C-40 Crusher 10805 | -7/Waste | Allies destroyed C-40 Crusher 10813 | -7/Waste | Allies destroyed C-40 Crusher 10822 | -7/Waste | Allies destroyed C-40 Crusher 10850 | -7/Waste | Found Damper Plating 11174 | -7/Waste | Build established: Scavenger-Mutant 11206 | -7/Waste | Entered Factory 11206 | -7/Factory | Accompanied by 11 allies 11235 | -7/Factory | Garrison activated, responded to threat 11600 | -7/Factory | Found Prototype Device 11600 | -7/Factory | Identified Active Sensor Suite 11759 | -7/Factory | Garrison activated, responded to threat 11884 | -7/Factory | Build established: Scavenger-Skirmisher 12045 | -7/Factory | Lost 4 parts (1p1n2u) 12052 | -7/Factory | Cargo convoy interrupted 12066 | -7/Factory | Garrison activated, responded to threat 12089 | -7/Factory | Destroyed 7 combat bots 12118 | -7/Factory | System corruption reached 10% 12273 | -7/Factory | Found Prototype Processor 12273 | -7/Factory | Identified Exp. Terrain Scan Processor 12370 | -7/Factory | Build established: Scavenger-Mutant 12379 | -7/Factory | Discovered new exit (range 15) 12406 | -7/Factory | First assault squad dispatched 12412 | -7/Factory | Core integrity fell below 50% 12417 | -7/Factory | Garrison activated, responded to threat 12438 | -7/Factory | Entered Lower Caves 12440 | -7/Lower Caves | Attracted the attention of an 0b10 checkpoint 12471 | -7/Lower Caves | Encountered a Warlord checkpoint 12493 | -7/Lower Caves | Met a Warlord Commander 12494 | -7/Lower Caves | Learned location of Warlord (-5) 12515 | -7/Lower Caves | Found Encrypted Comm Array 12745 | -7/Lower Caves | Attacked by a faux Warlord 12880 | -7/Lower Caves | Build established: Mutant 13089 | -7/Lower Caves | Learned Factory stockpile data 13214 | -7/Lower Caves | Discovered new exit (range 12) 13269 | -7/Lower Caves | Lost 3 parts (1n1u1w) 13368 | -7/Lower Caves | Entered another Lower Caves area 13689 | -7/Lower Caves | Encountered a Warlord checkpoint 13859 | -7/Lower Caves | Attracted the attention of an 0b10 checkpoint 13886 | -7/Lower Caves | Discovered new exit (range 11) 14009 | -7/Lower Caves | Entered Data Miner 14010 | -7/Data Miner | Discovered new exit (range 6) 14032 | -7/Data Miner | Met Data Miner 14054 | -7/Data Miner | Learned location of Section 7 (-3) 14054 | -7/Data Miner | Acquired the access code to Warlord's prototype stash 14070 | -7/Data Miner | Received God Mode back door access code from Data Miner 14111 | -7/Data Miner | Entered Proximity Caves 14116 | -6/Proximity Caves | Attracted the attention of an 0b10 checkpoint 14123 | -6/Proximity Caves | Spotter reported a threat 14123 | -6/Proximity Caves | Spotter reported a threat 14125 | -6/Proximity Caves | Escorted by Enhanced Grunt 14180 | -6/Proximity Caves | Learned Factory security intel 14190 | -6/Proximity Caves | Attracted the attention of an 0b10 outpost 14221 | -6/Proximity Caves | Core integrity fell below 20% 14277 | -6/Proximity Caves | Destroyed by Y-64 Sentinel with Wave Gun Last Messages --------------- 14214_ Destroyed Imp. Deuterium Engine. 14214_ Slug penetrates G-50 Soldier. 14214_ G-50 Soldier destroyed. 14216_ Destroyed Unknown Leg. 14216_ Med. Treads destroyed. 14216_ Destroyed Med. Treads. 14217_ System corrupted: Cld. Gravmag System rejected. 14217_ Slug penetrates Wall. 14218_ L-41 Fighter destroyed. 14220_ Penetrated by Slug. 14222_ The unstable cave ceiling collapses. 14229_ Minigun destroyed. 14239_ Penetrated by Slug. 14247_ L-41 Fighter destroyed. 14247_ B-48 Gladiator destroyed. 14259_ Rnf. Deuterium Engine destroyed. 14267_ Gravity Neutralizer destroyed. 14267_ Penetrated by Slug. 14268_ System corrupted: Matter fused (-6). 14270_ Imp. Heat Sink destroyed. Map ----- +----------------------------------------------------+ | ?????????????????????????????????????????????????? | | ?????????????????????????????????????????????????? | | ?????????????????????????????????????????????????? | | ?????????????????????????????????????????????????? | | ?????????????????????????????????????????????????? | | ?????????????????????????????????????????????????? | | ?????????????????????????????????????????????????? | | ?????????????????????????????????????????????????? | | ?????????????????????????????????????????????????? | | ?????????????????????????????????????????????????? | | ?????????????????????????????????????????????????? | | ?????????????????????????????????????????????????? | | ?????????????????????????????????????????????????? | | ?????????????????????????????????????????????????? | | ?????????????????????????????????????####????????? | | ????????????????????????????????????# #????????? | | ???????????????????????????????????# ##???????? | | ??????????????????????????????????# #???????? | | ???????????????????????????????### #???????? | | ?????????????? ????????????????# #????????? | | ??????????????# ??????????????? #?????????? | | ??????????????? ??????????????# ### #????? | | ???????????????? ??????######## ?????? | | ??????????#?????? ????## # # ??????? | | ?????????? #?????# ??### #?????????????? | | ????????? ??#??# ?# @ #?????????????? | | ????????? ??# ?# ####### ;###???? ?? | | ????????## ### ## #??## Y% #### #?? | | ???????? ?# ###?# /% #??? | | ????????# ## #### #????? | | ???????## #"#" % # ##????? | | ??????## ## ##?##?????? | | ??????# # #????????? | | ??????# ### %""#"# #????????? | | ??????# ## % ###### ### ?? | | ???????# ## % # ###### #?? ? | | ????????# # # ## #??? #### ?? | | ????????# #####???? #??????? | | ????????# ### #???????? #?????? | | ???????# #?## ## #####????????? ##?????? | | ???????# #??# ## ##??????????????##??????? | | ???????## ##?# ?####???????????????????????? | | ????????# #?# ????????????????????????????? | | ????????# ## ????????????????????????????? | | ????????# ????????????????????????????? | | ????????# #### ????????????????????????????? | | ????????# ???## ????????????????????????????? | | ????????# #????##### ???????????????????????????? | | ????????## ??????????????????????????????????????? | | ?????????##??????????????????????????????????????? | +----------------------------------------------------+ Best States ------------- Heat Dissipation 48 Energy Generation 21 Energy Capacity 325 Matter Stores 300 Matter Capacity 300 Sight Range 16 Robot Scan Range 20 Terrain Scan Density 1010 Jamming Range 12 Additional Mass Support 12 Armor Coverage 1600 Resistance: EM 90 Core Shielding 20 Evasion (%) 61 Recoil Reduction 4 Kinecelleration 30 Offensive Hacking 24 Authchip Count 2 Item Schematics ----------------- Seismic Detector | -9/Materials | Scanalyzed Lgt. Treads | -9/Materials | Scanalyzed Hcp. Matter Pod | -9/Materials | Scanalyzed Weapon Shielding | -9/Materials | Scanalyzed Targeting Computer | -9/Materials | Hacked Combat Drone Bay | -7/Data Miner | Free Lgt. Regenerative Plating | -7/Data Miner | Free Cld. Aerolev Unit | -7/Data Miner | Free Thermal Defense Suite | -7/Data Miner | Free Cld. Plasma Cannon | -7/Data Miner | Free Antigrav System | -7/Data Miner | Free Imp. Thermal Shield | -7/Data Miner | Free Imp. Plasma Cutter | -7/Data Miner | Free Mic. Fission Core | -7/Data Miner | Free Robot Schematics ------------------ M-13 Machinist | -9/Materials | Hacked Fabricated ------------ Nothing Alien Tech Used ----------------- None Achievements -------------- None Challenges ------------ None Game ------ Seed LobotomyThiefBoomstick Manual? 0 Play Time 01:32:19 Cumulative 203.6 hours Start 2023.03.22 @ 04:06:26 End 2023.03.22 @ 05:37:26 Sessions 1 Manual Loads 0 Difficulty Rogue Special Mode None Game No. 284 Rogue 284 Adventurer 0 Explorer 0 Win Type - Total 7 Types 6/0/0/1/0/0/0/0/0 Lore% 81 Gallery% 84 Achievement% 68 Wizard Run 0 Options --------- ASCII 0 Keyboard 0 Movement Numpad Keybinds 0 Fullscreen 2 Font 18/SmallcapsGlow Map View 76x50 Tactical HUD 1 Map Filters NONE Filters NONE Steam 1 RUN: 7aea5761-7ed3-49f0-a4c8-6b0f59a41662